bitfinex-derivatives/quotes_SOLF0:USTF0_20251101
["timestamp","ask_amount","ask_price","bid_price","bid_amount"]
[1761970458399,2.92,187.09,187.0,0.73]
[1761970458604,2.92,187.09,187.02,0.73]
[1761970458902,2.92,187.09,187.03,4.2620029]
[1761970459101,2.92,187.09,187.02,0.73]
[1761970459303,2.92,187.09,187.03,4.26204602]
[1761970459601,2.73,187.07,187.02,0.73]
[1761970459803,2.73,187.07,187.03,4.30556266]
[1761970460003,2.73,187.07,187.02,0.73]
[1761970460194,2.73,187.07,187.03,4.30556294]
[1761970460503,2.73,187.07,187.02,0.73]
[1761970460696,2.73,187.07,187.03,4.30546131]
[1761970460899,2.73,187.07,187.02,0.73]
[1761970461098,2.73,187.07,187.03,5.02546131]
[1761970461402,2.73,187.07,187.03,0.72]
[1761970461603,4.54283507,187.1,187.03,0.72]
[1761970461903,2.73,187.09,187.05,0.72]
[1761970462293,2.73,187.09,187.0,4.98952691]
[1761970462500,2.73,187.07,187.02,0.72]
[1761970462699,2.73,187.07,187.03,5.02458989]
[1761970462899,2.73,187.07,187.03,0.72]
[1761970464609,2.73,187.07,187.04,4.30443521]
[1761970464914,2.73,187.07,187.03,0.72]
[1761970465108,2.73,187.07,187.04,4.30443521]
[1761970465307,2.73,187.07,187.03,0.72]
[1761970466805,2.73,187.07,187.0,0.72]
[1761970467105,2.73,187.07,187.01,4.30411676]
[1761970467411,2.73,187.07,187.0,0.72]
[1761970467613,2.73,187.07,187.01,5.02439481]
[1761970467913,2.73,187.07,187.01,0.72]
[1761970470510,2.73,187.05,187.01,0.72]
[1761970470704,4.25152725,187.04,187.01,0.72]
[1761970470909,4.25152725,187.03,187.01,0.72]
[1761970471111,4.25152725,187.02,187.01,0.72]
[1761970471310,4.25152725,187.02,187.01,5.02458919]
[1761970475522,4.25273193,187.02,187.01,5.02458919]
[1761970477325,4.25273193,187.02,187.01,4.30458919]
[1761970483335,4.25273193,187.02,187.01,5.02458919]
[1761970486038,6.92273193,187.02,187.01,4.30458919]
[1761970488234,2.67,187.01,186.99,2.9997657]
[1761970488438,6.92273193,187.0,186.99,2.9997657]
[1761970501454,6.92273193,187.0,186.92,5.70952691]
[1761970501455,2.67,186.99,186.92,5.70952691]
[1761970501654,2.67,186.97,186.93,4.30337149]
[1761970501858,2.67,186.95,186.94,4.30337149]
[1761970502150,6.92273193,186.95,186.93,0.72]
[1761970502355,6.92273193,186.94,186.9,0.72]
[1761970502556,4.25273193,186.93,186.92,0.72]
[1761970502754,4.25273193,186.93,186.92,5.02208971]
[1761970504555,4.25273193,186.93,186.92,4.30208971]
[1761970504753,6.92273193,186.93,186.92,4.30208971]
[1761970505364,6.92273193,186.93,186.89,0.72]
[1761970505563,4.25273193,186.92,186.9,5.01700712]
[1761970505754,4.25273193,186.91,186.9,0.72]
[1761970506059,4.25273193,186.91,186.9,5.01700712]
[1761970506260,4.25273193,186.91,186.9,0.72]
[1761970506958,4.25273193,186.91,186.9,5.01537408]
[1761970507355,4.25273193,186.91,186.9,0.72]
[1761970512973,4.25273193,186.91,186.85,0.72]
[1761970513173,4.25273193,186.9,186.87,0.72]
[1761970513370,2.67,186.91,186.89,0.72]
[1761970513670,4.19105945,186.9,186.89,0.72]
[1761970514171,4.1912199,186.94,186.9,0.72]
[1761970514473,4.19096725,186.93,186.9,0.72]
[1761970514672,4.19096725,186.92,186.9,0.72]
[1761970514864,4.19096725,186.91,186.9,0.72]
[1761970515063,4.19097412,186.91,186.9,0.72]
[1761970516273,2.67,186.95,186.9,0.72]
[1761970517575,2.67,186.95,186.86,0.73]
[1761970517777,2.67,186.95,186.87,4.99062999]
[1761970517971,2.67,186.95,186.88,4.26062999]
[1761970518168,2.67,186.95,186.89,4.26062999]
[1761970518370,2.67,186.95,186.87,0.73]
[1761970518576,2.67,186.95,186.88,4.26057675]
[1761970518776,2.67,186.95,186.87,0.73]
[1761970518972,2.67,186.95,186.88,4.26069717]
[1761970519178,2.67,186.95,186.87,0.73]
[1761970519375,2.67,186.95,186.88,4.26086592]
[1761970519576,2.67,186.95,186.87,0.73]
[1761970519777,2.67,186.95,186.88,4.26060032]
[1761970519976,2.67,186.95,186.87,0.73]
[1761970520172,2.67,186.95,186.88,4.26060032]
[1761970520374,2.67,186.95,186.87,0.73]
[1761970520567,2.67,186.95,186.88,4.26060624]
[1761970520767,2.67,186.95,186.87,0.73]
[1761970520974,2.67,186.95,186.88,4.26060624]
[1761970521273,2.67,186.95,186.87,0.73]
[1761970521472,2.67,186.95,186.88,4.26060818]
[1761970521678,2.67,186.95,186.87,0.73]
[1761970521871,2.67,186.95,186.88,4.98060818]
[1761970522070,2.67,186.95,186.88,0.72]
[1761970522780,2.67,186.95,186.84,0.72]
[1761970522968,2.67,186.95,186.85,4.98072715]
[1761970523172,2.67,186.95,186.85,0.72]
[1761970524087,2.78,186.92,186.85,0.72]
[1761970529187,2.78,186.92,186.86,4.98254237]
[1761970529391,2.78,186.92,186.86,0.72]
[1761970533886,2.78,186.92,186.83,0.72]
[1761970534086,2.78,186.92,186.84,4.2659979]
[1761970534288,2.78,186.92,186.85,4.2659979]
[1761970534488,2.78,186.92,186.86,4.2659979]
[1761970534691,2.78,186.92,186.84,0.72]
[1761970534992,2.78,186.92,186.85,4.98641285]
[1761970535193,2.78,186.92,186.86,4.26641285]
[1761970535395,2.78,186.92,186.85,0.72]
[1761970535693,2.78,186.92,186.86,4.26693213]
[1761970535995,2.78,186.92,186.85,0.72]
[1761970536194,2.78,186.92,186.86,4.26693213]
[1761970536395,2.78,186.92,186.87,4.26693213]
[1761970536599,2.78,186.92,186.85,0.72]
[1761970536797,2.78,186.92,186.86,4.26756284]
[1761970536993,2.78,186.92,186.87,4.26756284]
[1761970537194,2.78,186.92,186.85,0.72]
[1761970537496,2.78,186.92,186.86,4.98816702]
[1761970537696,2.78,186.92,186.87,4.26816702]
[1761970537899,2.78,186.92,186.86,0.72]
[1761970538093,2.78,186.92,186.87,4.9881882]
[1761970538288,2.78,186.92,186.84,0.72]
[1761970538492,2.78,186.92,186.85,4.98892884]
[1761970538693,2.78,186.92,186.86,4.26892884]
[1761970538896,2.78,186.92,186.87,4.26892884]
[1761970539105,2.78,186.92,186.85,0.72]
[1761970539393,2.78,186.92,186.86,4.26974756]
[1761970539588,2.78,186.92,186.87,4.26974756]
[1761970539795,2.78,186.92,186.85,0.72]
[1761970539993,2.78,186.92,186.86,4.26979711]
[1761970540190,2.78,186.92,186.83,4.98952691]
[1761970540391,2.78,186.89,186.84,4.27072882]
[1761970540601,5.61494309,186.85,186.81,0.72]
[1761970541194,2.78,186.85,186.81,0.72]
[1761970541395,5.61494309,186.88,186.82,4.84948934]
[1761970541603,2.78,186.86,186.83,0.72]
[1761970541798,4.48329655,186.85,186.83,0.72]
[1761970542103,4.48329655,186.84,186.83,0.72]
[1761970542995,4.48329655,186.84,186.79,0.72]
[1761970543195,4.48329655,186.83,186.81,0.72]
[1761970543398,2.78,186.84,186.82,4.13003138]
[1761970543598,4.48405411,186.83,186.81,0.72]
[1761970543800,2.78,186.84,186.82,4.13080153]
[1761970543994,4.48405411,186.83,186.81,0.72]
[1761970544203,2.78,186.84,186.82,4.13080153]
[1761970544402,2.78,186.84,186.83,4.13080153]
[1761970544602,7.26512679,186.84,186.83,4.13080153]
[1761970545204,2.78,186.83,186.78,5.70952691]
[1761970545408,7.26512679,186.82,186.79,4.85129026]
[1761970545601,4.48512679,186.81,186.8,4.13129026]
[1761970545797,7.26512679,186.81,186.8,4.13129026]
[1761970546504,10.10006988,186.81,186.8,4.13129026]
[1761970547110,4.48512679,186.81,186.8,4.86129026]
[1761970550511,4.48512679,186.81,186.8,0.73]
[1761970550704,4.48512679,186.81,186.8,4.85968372]
[1761970552211,4.48512679,186.81,186.8,4.12968372]
[1761970553710,7.17512679,186.81,186.8,4.12968372]
[1761970554304,7.17512679,186.81,186.77,0.73]
[1761970554505,4.48512679,186.8,186.79,0.73]
[1761970554705,7.17512679,186.8,186.79,4.12794281]
[1761970555301,4.48512679,186.8,186.79,4.85794281]
[1761970556506,4.48512679,186.8,186.79,4.12794281]
[1761970556710,4.48512679,186.8,186.79,4.85794281]
[1761970561216,7.17512679,186.8,186.79,4.12794281]
[1761970562120,7.17512679,186.8,186.76,0.73]
[1761970562317,4.48512679,186.79,186.78,0.73]
[1761970562511,4.48512679,186.79,186.78,4.85754811]
[1761970565615,7.17512679,186.79,186.78,4.12754811]
[1761970565816,2.69,186.78,186.74,0.73]
[1761970566025,4.48512679,186.77,186.76,0.73]
[1761970566211,4.48512679,186.77,186.76,4.85903665]
[1761970566916,7.17512679,186.77,186.76,4.12903665]
[1761970567924,2.69,186.76,186.71,4.99916668]
[1761970568219,1.81754612,186.74,186.73,0.73]
[1761970568425,6.30267291,186.74,186.73,4.85944994]
[1761970569524,8.99267291,186.74,186.73,4.12944994]
[1761970570524,4.48512679,186.74,186.73,4.85944994]
[1761970571027,4.48512679,186.74,186.73,0.73]
[1761970578634,4.48512679,186.74,186.72,0.73]
[1761970578836,4.48512679,186.73,186.72,0.73]
[1761970579535,4.48512679,186.73,186.71,4.99916668]
[1761970579536,2.79,186.72,186.71,4.99916668]
[1761970579732,7.27512679,186.72,186.7,5.72916668]
[1761970579933,4.48512679,186.71,186.7,5.72916668]
[1761970580134,4.48512679,186.71,186.7,0.73]
[1761970581437,4.48512679,186.71,186.69,5.72916668]
[1761970581736,4.48512679,186.7,186.69,5.72916668]
[1761970582129,4.48512679,186.7,186.69,0.73]
[1761970584533,4.48512679,186.7,186.68,5.72916668]
[1761970584837,4.48512679,186.69,186.68,5.72916668]
[1761970585529,4.48512679,186.69,186.68,0.73]
[1761970586136,4.48512679,186.69,186.68,5.72916668]
[1761970590536,7.27512679,186.69,186.68,4.99916668]
[1761970590842,4.48512679,186.69,186.67,5.72916668]
[1761970591040,4.48512679,186.68,186.67,5.72916668]
[1761970591841,7.27512679,186.68,186.67,4.99916668]
[1761970592039,4.48512679,186.68,186.67,4.99916668]
[1761970592241,7.27512679,186.68,186.66,4.99916668]
[1761970592543,7.27512679,186.67,186.66,4.99916668]
[1761970592738,4.48512679,186.67,186.66,4.99916668]
[1761970593342,7.27512679,186.67,186.66,4.99916668]
[1761970593543,4.48512679,186.67,186.66,5.72916668]
[1761970595550,4.48512679,186.67,186.66,0.73]
[1761970595748,4.48512679,186.67,186.66,5.72916668]
[1761970598645,4.48512679,186.67,186.66,0.73]
[1761970598850,4.48512679,186.67,186.64,5.72916668]
[1761970598851,7.27512679,186.67,186.64,5.72916668]
[1761970599047,7.27512679,186.66,186.64,4.99916668]
[1761970599248,4.48512679,186.65,186.64,4.99916668]
[1761970600247,7.27512679,186.65,186.63,4.99916668]
[1761970600447,4.48512679,186.64,186.63,4.99916668]
[1761970600746,4.48512679,186.64,186.63,5.72916668]
[1761970601146,4.48512679,186.64,186.63,0.73]
[1761970604459,4.48512679,186.64,186.63,5.72916668]
[1761970604955,3.89280327,186.64,186.63,5.72916668]
[1761970607159,3.89280327,186.64,186.63,0.73]
[1761970608649,3.89280327,186.64,186.62,5.00063079]
[1761970608850,2.88,186.67,186.61,15.62511847]
[1761970609162,2.88,186.67,186.61,16.33511847]
[1761970609966,4.69754612,186.62,186.61,9.06903679]
[1761970610256,2.88,186.61,186.52,0.71]
[1761970610463,2.88,186.56,186.52,0.93282582]
[1761970610755,2.88,186.54,186.49,2.76]
[1761970610960,2.88,186.54,186.5,3.69310095]
[1761970611164,2.88,186.54,186.51,2.76]
[1761970611165,4.91814676,186.53,186.51,2.76]
[1761970611462,4.91814676,186.52,186.51,2.76]
[1761970612461,2.88,186.57,186.51,2.76]
[1761970612660,7.79065807,186.56,186.51,2.76]
[1761970612859,4.91065807,186.55,186.51,2.76]
[1761970613066,4.91065807,186.54,186.51,2.76]
[1761970613364,4.91065807,186.53,186.51,2.76]
[1761970613664,4.90692973,186.52,186.51,2.76]
[1761970613962,4.90692973,186.52,186.5,0.93310095]
[1761970614161,2.88,186.56,186.5,0.93310095]
[1761970614358,2.88,186.54,186.5,0.93310095]
[1761970614662,7.78711948,186.53,186.5,0.93310095]
[1761970614961,4.90711948,186.52,186.5,0.93310095]
[1761970615461,2.88,186.53,186.5,3.69310095]
[1761970615862,2.88,186.58,186.51,2.76]
[1761970616059,7.78063631,186.57,186.51,2.76]
[1761970616260,4.90063631,186.56,186.51,2.76]
[1761970616458,4.90063631,186.55,186.51,2.76]
[1761970616660,4.90063631,186.54,186.51,2.76]
[1761970616955,2.88,186.56,186.51,2.76]
[1761970617160,12.30923731,186.55,186.51,2.76]
[1761970617362,9.42906504,186.54,186.51,2.76]
[1761970617570,4.89832487,186.53,186.51,2.76]
[1761970617866,2.88,186.55,186.51,2.76]
[1761970618062,12.30522326,186.54,186.51,2.76]
[1761970618261,4.89611889,186.53,186.51,2.76]
[1761970619365,4.89611889,186.53,186.5,3.69310095]
[1761970620367,7.77611889,186.53,186.5,3.69310095]
[1761970620572,2.88,186.53,186.5,0.93310095]
[1761970620759,2.88,186.53,186.5,3.69310095]
[1761970621567,2.88,186.53,186.5,0.93310095]
[1761970622168,2.88,186.53,186.5,3.69310095]
[1761970623654,2.88,186.51,186.46,2.76]
[1761970623855,2.88,186.49,186.46,3.69321355]
[1761970624457,2.88,186.49,186.46,0.93321355]
[1761970624658,2.88,186.47,186.46,0.93321355]
[1761970624860,7.76780649,186.47,186.46,0.93321355]
[1761970625379,2.88,186.46,186.4,2.76]
[1761970625674,2.84717227,186.52,186.42,0.93350144]
[1761970625675,7.76780649,186.45,186.42,0.93350144]
[1761970625863,7.76780649,186.44,186.42,0.93350144]
[1761970626064,2.88,186.44,186.42,0.93350144]
[1761970626260,2.88,186.44,186.4,2.76]
[1761970626573,2.88,186.44,186.4,3.69361413]
[1761970627163,2.88,186.51,186.41,2.76]
[1761970627378,2.88,186.49,186.41,2.76]
[1761970627568,2.88,186.47,186.41,2.76]
[1761970627768,2.88,186.45,186.41,2.76]
[1761970628175,4.87994502,186.44,186.41,2.76]
[1761970628670,2.88,186.43,186.4,0.93361413]
[1761970628876,2.88,186.43,186.4,3.69361413]
[1761970629574,2.88,186.43,186.4,0.93361413]
[1761970630674,2.88,186.5,186.41,2.76]
[1761970630872,12.26362993,186.49,186.41,2.76]
[1761970631077,12.26362993,186.48,186.41,2.76]
[1761970631272,9.38362993,186.47,186.41,2.76]
[1761970631477,9.38362993,186.46,186.41,2.76]
[1761970631678,4.92396624,186.45,186.41,2.76]
[1761970631880,2.88,186.49,186.41,2.76]
[1761970632086,2.88,186.47,186.41,2.76]
[1761970632274,16.34,186.58,186.41,2.76]
[1761970632275,2.88,186.45,186.41,2.76]
[1761970632582,7.80396339,186.44,186.41,2.76]
[1761970632774,4.92396339,186.43,186.41,2.76]
[1761970633079,2.88,186.44,186.4,0.93361413]
[1761970633377,4.92227406,186.43,186.41,2.76]
[1761970633574,2.88,186.47,186.41,2.76]
[1761970633879,2.88,186.45,186.4,2.76]
[1761970634076,4.921412,186.44,186.4,3.69356404]
[1761970634372,4.921412,186.43,186.4,3.69356404]
[1761970634572,4.921412,186.42,186.4,3.69356404]
[1761970634776,2.88,186.44,186.4,3.69356404]
[1761970634975,4.92017044,186.43,186.4,3.69356404]
[1761970635175,4.92017044,186.42,186.4,3.69356404]
[1761970635373,2.88,186.48,186.41,2.76]
[1761970635573,12.30571624,186.47,186.41,2.76]
[1761970635782,2.88,186.45,186.41,2.76]
[1761970636073,4.91997917,186.44,186.41,2.76]
[1761970636276,4.91997917,186.43,186.41,2.76]
[1761970636472,2.75,186.48,186.41,2.76]
[1761970636677,12.22153286,186.47,186.41,2.76]
[1761970636877,12.22153286,186.46,186.41,2.76]
[1761970637078,9.47153286,186.45,186.41,2.76]
[1761970637285,4.91994097,186.44,186.41,2.76]
[1761970637480,2.75,186.46,186.41,2.76]
[1761970637682,9.47087406,186.45,186.41,2.76]
[1761970637883,4.91959876,186.44,186.41,2.76]
[1761970638078,2.75,186.46,186.41,2.76]
[1761970638275,2.75,186.44,186.4,3.75356404]
[1761970638586,4.91959729,186.43,186.4,3.75356404]
[1761970638772,4.91959729,186.42,186.4,3.75356404]
[1761970638974,2.75,186.44,186.4,3.75356404]
[1761970639175,4.91934455,186.43,186.4,3.75356404]
[1761970639476,4.91934455,186.42,186.4,3.75356404]
[1761970639782,2.75,186.44,186.4,3.75356404]
[1761970639972,4.91940825,186.43,186.41,2.86]
[1761970640174,4.91940825,186.42,186.41,2.86]
[1761970641571,4.91940825,186.42,186.4,0.93356404]
[1761970641777,2.75,186.44,186.4,0.93356404]
[1761970641976,7.7600025,186.43,186.4,0.93356404]
[1761970642178,4.9200025,186.42,186.4,0.93356404]
[1761970642374,2.84,186.43,186.4,0.93356404]
[1761970642580,4.92078912,186.42,186.4,0.93356404]
[1761970642880,2.84,186.43,186.38,2.86]
[1761970643080,7.76078992,186.42,186.38,3.79371433]
[1761970643286,4.92078992,186.41,186.39,2.86]
[1761970643484,2.84,186.42,186.39,2.86]
[1761970643685,4.92171436,186.41,186.39,2.86]
[1761970643878,2.84,186.42,186.39,2.86]
[1761970644085,2.84,186.47,186.39,2.86]
[1761970644284,2.84,186.45,186.39,2.86]
[1761970644485,9.47556362,186.44,186.39,2.86]
[1761970644686,9.47556362,186.43,186.39,2.86]
[1761970644885,4.92192086,186.42,186.4,2.86]
[1761970645082,2.84,186.45,186.4,2.86]
[1761970645283,9.47788311,186.44,186.4,2.86]
[1761970645483,4.92322219,186.43,186.4,2.86]
[1761970645679,4.92322219,186.42,186.4,2.86]
[1761970645989,2.84,186.45,186.4,2.86]
[1761970646193,9.4803855,186.44,186.4,2.86]
[1761970646383,4.92452204,186.43,186.4,2.86]
[1761970646583,4.92452204,186.42,186.4,2.86]
[1761970646784,2.84,186.45,186.4,2.86]
[1761970646989,9.48220467,186.44,186.4,2.86]
[1761970647190,4.925467,186.43,186.4,2.86]
[1761970647389,4.925467,186.42,186.4,2.86]
[1761970647693,2.84,186.45,186.4,2.86]
[1761970647882,12.32470832,186.44,186.4,2.86]
[1761970648083,12.32470832,186.43,186.4,2.86]
[1761970648294,9.48681324,186.42,186.4,2.86]
[1761970648489,4.9267675,186.41,186.4,2.86]
[1761970649893,4.9267675,186.41,186.26,2.84717227]
[1761970649894,2.84,186.4,186.26,2.84717227]
[1761970650088,2.84717227,186.47,186.27,11.62]
[1761970650089,2.84,186.37,186.27,11.62]
[1761970650289,9.48923387,186.36,186.27,14.46717227]
[1761970650491,9.48923387,186.35,186.27,11.62]
[1761970650695,9.48923387,186.34,186.28,2.84717227]
[1761970650988,4.9267675,186.33,186.28,2.84717227]
[1761970651184,4.9267675,186.32,186.27,11.62]
[1761970651390,2.84,186.4,186.26,2.84717227]
[1761970651694,2.84,186.38,186.28,0.81]
[1761970651894,9.49201792,186.37,186.28,0.81]
[1761970652198,9.49201792,186.36,186.28,0.81]
[1761970652495,9.49201792,186.35,186.28,0.81]
[1761970652695,9.49201792,186.34,186.28,0.81]
[1761970652884,9.49201792,186.33,186.28,0.81]
[1761970653090,4.93075381,186.32,186.3,0.81]
[1761970653285,4.93075381,186.31,186.3,0.81]
[1761970653596,4.93075381,186.31,186.3,77.33]
[1761970654302,9.49907365,186.31,186.3,77.33]
[1761970655495,9.49907365,186.31,186.3,77.31]
[1761970656700,9.49907365,186.31,186.3,0.81]
[1761970656892,9.49907365,186.31,186.3,77.31]
[1761970657092,9.49907365,186.31,186.3,0.81]
[1761970657592,9.49907365,186.31,186.3,77.29]
[1761970658202,9.49907365,186.31,186.3,77.31]
[1761970658402,2.84,186.36,186.31,0.81]
[1761970659703,2.84,186.36,186.3,76.5]
[1761970660104,2.84,186.36,186.32,0.03388966]
[1761970660598,2.84,186.36,186.33,76.46]
[1761970661497,2.84,186.4,186.34,0.81]
[1761970663503,2.84,186.4,186.33,76.46]
[1761970666102,2.84,186.4,186.34,76.46]
[1761970666701,2.84,186.4,186.31,0.81]
[1761970667007,2.84,186.4,186.32,77.28]
[1761970667207,2.84,186.4,186.33,76.46]
[1761970667709,2.84,186.4,186.32,0.82]
[1761970667904,2.84,186.4,186.33,76.46]
[1761970668101,2.84,186.4,186.34,76.44]
[1761970669409,2.84,186.4,186.35,76.44]
[1761970670509,2.91,186.38,186.35,76.44]
[1761970670709,9.20970754,186.37,186.35,76.44]
[1761970671010,9.20970754,186.36,186.35,76.44]
[1761970671209,9.20970754,186.36,186.35,76.42]
[1761970671903,9.20970754,186.36,186.35,77.24]
[1761970674603,9.20970754,186.36,186.35,0.82]
[1761970674800,9.20970754,186.36,186.35,77.24]
[1761970675311,9.20970754,186.36,186.35,0.82]
[1761970675514,9.20970754,186.36,186.35,77.24]
[1761970676616,4.54936963,186.36,186.35,77.24]
[1761970678209,9.21485454,186.36,186.35,77.24]
[1761970678408,4.54936963,186.36,186.35,77.24]
[1761970679519,2.91,186.39,186.35,76.42]
[1761970679819,9.2161495,186.38,186.35,78.24521474]
[1761970680019,2.91,186.45,186.36,0.82]
[1761970680216,12.13357165,186.44,186.36,0.82]
[1761970680416,9.22357165,186.43,186.36,0.82]
[1761970680716,9.22357165,186.42,186.36,0.82]
[1761970680917,9.22357165,186.41,186.36,0.82]
[1761970681110,9.22357165,186.4,186.36,0.82]
[1761970681310,2.91,186.43,186.38,1.82521474]
[1761970681311,4.55562466,186.39,186.38,1.82521474]
[1761970681630,7.46562466,186.42,186.38,1.82521474]
[1761970681808,9.22416572,186.41,186.39,0.82]
[1761970682008,9.22416572,186.4,186.39,0.82]
[1761970682408,4.55562466,186.4,186.39,0.82]
[1761970682615,2.91,186.45,186.39,0.82]
[1761970682816,2.91,186.43,186.41,1.82521474]
[1761970683023,2.91,186.43,186.42,76.38]
[1761970683208,12.13697054,186.43,186.42,76.38]
[1761970683814,9.22697054,186.43,186.42,77.2]
[1761970684319,2.91,186.5,186.43,0.82]
[1761970684516,2.91,186.5,186.46,2.64521474]
[1761970685411,2.91,186.5,186.47,0.82]
[1761970685725,2.91,186.5,186.48,78.22521474]
[1761970686306,2.91,186.5,186.48,1.82521474]
[1761970686819,2.91,186.5,186.49,26.9]
[1761970688519,2.91,186.5,186.43,4.99015804]
[1761970688816,2.91,186.5,186.47,1.82521474]
[1761970690622,2.91,186.5,186.48,27.04]
[1761970692416,2.91,186.5,186.47,1.82521474]
[1761970692617,2.91,186.5,186.48,42.78]
[1761970693012,2.91,186.5,186.47,1.82521474]
[1761970693412,2.91,186.5,186.48,20.18]
[1761970694030,2.91,186.5,186.46,1.82521474]
[1761970694523,2.91,186.5,186.47,26.24]
[1761970696213,9.05289882,186.49,186.47,26.24]
[1761970696420,9.05289882,186.48,186.47,26.24]
[1761970696619,9.05289882,186.48,186.47,28.06521474]
[1761970697515,9.05289882,186.48,186.47,1.82521474]
[1761970697823,11.91289882,186.48,186.47,51.72521474]
[1761970699111,11.91289882,186.48,186.41,5.80015804]
[1761970699314,51.1350259,186.65,186.45,1.82521474]
[1761970699315,2.86,186.46,186.45,1.82521474]
[1761970699515,2.86,186.45,186.43,1.82521474]
[1761970699719,2.68,186.5,186.44,0.81]
[1761970700022,2.68,186.5,186.42,76.26]
[1761970700023,9.08325604,186.49,186.47,2.63521474]
[1761970700231,9.08325604,186.48,186.47,2.63521474]
[1761970702719,9.08325604,186.48,186.47,1.82521474]
[1761970703423,9.08325604,186.48,186.47,2.63521474]
[1761970703927,9.08325604,186.48,186.47,78.91521474]
[1761970704921,9.08325604,186.48,186.47,78.10521474]
[1761970705118,11.80325604,186.48,186.47,78.10521474]
[1761970705323,7.2422031,186.48,186.47,78.10521474]
[1761970705524,11.80729403,186.48,186.47,76.28]
[1761970706525,11.80729403,186.48,186.47,76.26]
[1761970707826,2.72,186.47,186.44,2.63521474]
[1761970708025,9.08729403,186.46,186.45,76.26]
[1761970708717,9.08867452,186.46,186.45,76.26]
[1761970708918,4.5222031,186.46,186.45,76.26]
[1761970709323,4.5222031,186.46,186.45,77.07]
[1761970709533,1.82521474,186.55,186.45,77.07]
[1761970709534,2.72,186.48,186.45,77.07]
[1761970709822,9.08938205,186.47,186.45,77.07]
[1761970710016,4.5222031,186.46,186.45,77.07]
[1761970710216,4.5222031,186.47,186.45,77.07]
[1761970710421,4.5222031,186.46,186.45,77.07]
[1761970710620,4.5222031,186.47,186.45,77.07]
[1761970710920,4.5222031,186.46,186.45,77.07]
[1761970711122,4.5222031,186.47,186.45,77.07]
[1761970711328,9.09086266,186.46,186.45,77.07]
[1761970712526,4.5222031,186.46,186.45,77.07]
[1761970712727,2.72,186.49,186.46,0.81]
[1761970713031,9.10009863,186.48,186.46,0.81]
[1761970713228,9.10009863,186.47,186.46,0.81]
[1761970715422,4.53035068,186.47,186.46,0.81]
[1761970716330,9.10596201,186.47,186.46,0.81]
[1761970716722,9.10596201,186.47,186.46,2.63521474]
[1761970717233,9.10596201,186.47,186.46,78.83521474]
[1761970719128,9.10596201,186.47,186.46,2.63521474]
[1761970719425,9.10596201,186.47,186.46,78.81521474]
[1761970721425,9.10596201,186.47,186.46,83.80537278]
[1761970722334,9.10596201,186.47,186.46,83.78537278]
[1761970723431,9.10596201,186.47,186.46,78.79521474]
[1761970724031,9.10596201,186.47,186.46,82.96570867]
[1761970724235,9.10596201,186.47,186.46,89.57226551]
[1761970724626,9.10596201,186.47,186.46,6.80570867]
[1761970724826,9.10596201,186.47,186.46,82.13570867]
[1761970725029,9.10596201,186.47,186.46,88.74226551]
[1761970725331,9.10596201,186.47,186.46,89.55226551]
[1761970727230,9.10596201,186.47,186.46,13.41226551]
[1761970727432,9.10596201,186.47,186.46,89.55226551]
[1761970727735,9.10596201,186.47,186.46,87.72705077]
[1761970727936,9.10596201,186.47,186.46,13.41226551]
[1761970728134,11.95596201,186.47,186.46,88.74226551]
[1761970728342,11.95596201,186.47,186.46,82.13570867]
[1761970728636,9.10596201,186.47,186.46,82.94570867]
[1761970729939,9.10596201,186.47,186.46,6.80570867]